[Event "Titled Tuesday Blitz November 01 Late 2022"]
[White "Krzyzanowski, Marcin"]
[Black "Mladenovic, Stefan"]
[WhiteFideId "1132199"]
[BlackFideId "942227"]
[WhiteElo "2435"]
[BlackElo "2337"]
[Result "1/2-1/2"]
[Round "06"]
[TimeControl "180+1"]
[Date "2022.11.02"]
[WhiteClock "0:01:07"]
[BlackClock "0:00:09"]

1. d4 {[%clk 0:03:00]}  Nf6 {[%clk 0:02:57]} 2. Nc3 {[%clk 0:02:59]}  e6 {[%clk 0:02:58]} 3. e4 {[%clk 0:02:59]}  d5 {[%clk 0:02:58]} 4. e5 {[%clk 0:02:58]}  Nfd7 {[%clk 0:02:58]} 5. Nce2 {[%clk 0:02:59]}  c5 {[%clk 0:02:59]} 6. c3 {[%clk 0:02:59]}  Nc6 {[%clk 0:02:59]} 7. Nf3 {[%clk 0:02:58]}  b5 {[%clk 0:02:58]} 8. g3 {[%clk 0:02:54]}  b4 {[%clk 0:02:56]} 9. cxb4 {[%clk 0:02:50]}  cxd4 {[%clk 0:02:54]} 10. Nexd4 {[%clk 0:02:50]}  Bxb4+ {[%clk 0:02:53]} 11. Bd2 {[%clk 0:02:51]}  Bxd2+ {[%clk 0:02:52]} 12. Qxd2 {[%clk 0:02:51]}  Ncxe5 {[%clk 0:02:50]} 13. Nxe5 {[%clk 0:02:48]}  Nxe5 {[%clk 0:02:51]} 14. f4 {[%clk 0:02:49]}  Nd7 {[%clk 0:02:41]} 15. Bd3 {[%clk 0:02:47]}  O-O {[%clk 0:02:39]} 16. O-O {[%clk 0:02:47]}  Nf6 {[%clk 0:02:39]} 17. Rac1 {[%clk 0:02:46]}  Qb6 {[%clk 0:02:38]} 18. Kh1 {[%clk 0:02:45]}  Bd7 {[%clk 0:02:34]} 19. Nf3 {[%clk 0:02:41]}  Rac8 {[%clk 0:02:33]} 20. Ne5 {[%clk 0:02:41]}  Rxc1 {[%clk 0:02:26]} 21. Rxc1 {[%clk 0:02:42]}  Rc8 {[%clk 0:02:23]} 22. Nxd7 {[%clk 0:02:40]}  Rxc1+ {[%clk 0:02:23]} 23. Qxc1 {[%clk 0:02:41]}  Nxd7 {[%clk 0:02:23]} 24. Qc8+ {[%clk 0:02:37]}  Nf8 {[%clk 0:02:22]} 25. Qc2 {[%clk 0:02:37]}  Qe3 {[%clk 0:02:18]} 26. Kg2 {[%clk 0:02:36]}  g6 {[%clk 0:02:14]} 27. Qe2 {[%clk 0:02:29]}  Qxe2+ {[%clk 0:02:10]} 28. Bxe2 {[%clk 0:02:29]}  Nd7 {[%clk 0:02:11]} 29. Kf3 {[%clk 0:02:29]}  Kf8 {[%clk 0:02:11]} 30. Ke3 {[%clk 0:02:29]}  Ke7 {[%clk 0:02:12]} 31. Kd4 {[%clk 0:02:28]}  Kd6 {[%clk 0:02:12]} 32. b4 {[%clk 0:02:19]}  f6 {[%clk 0:02:13]} 33. a4 {[%clk 0:02:20]}  e5+ {[%clk 0:02:13]} 34. fxe5+ {[%clk 0:02:20]}  fxe5+ {[%clk 0:02:14]} 35. Kc3 {[%clk 0:02:21]}  e4 {[%clk 0:02:01]} 36. Kd4 {[%clk 0:02:16]}  Nf8 {[%clk 0:02:00]} 37. a5 {[%clk 0:02:05]}  Ne6+ {[%clk 0:01:59]} 38. Kc3 {[%clk 0:02:06]}  Ke5 {[%clk 0:01:55]} 39. b5 {[%clk 0:02:06]}  d4+ {[%clk 0:01:55]} 40. Kc4 {[%clk 0:02:05]}  d3 {[%clk 0:01:55]} 41. Bg4 {[%clk 0:02:05]}  Nc7 {[%clk 0:01:23]} 42. b6 {[%clk 0:02:03]}  axb6 {[%clk 0:01:23]} 43. axb6 {[%clk 0:02:04]}  Na6 {[%clk 0:01:23]} 44. Bc8 {[%clk 0:01:50]}  Nb8 {[%clk 0:01:03]} 45. Kc3 {[%clk 0:01:47]}  Kd6 {[%clk 0:00:52]} 46. Bb7 {[%clk 0:01:44]}  Nc6 {[%clk 0:00:51]} 47. Ba8 {[%clk 0:01:41]}  Kc5 {[%clk 0:00:47]} 48. h4 {[%clk 0:01:10]}  Kxb6 {[%clk 0:00:45]} 49. g4 {[%clk 0:01:11]}  Kc5 {[%clk 0:00:42]} 50. h5 {[%clk 0:01:11]}  gxh5 {[%clk 0:00:41]} 51. gxh5 {[%clk 0:01:12]}  h6 {[%clk 0:00:42]} 52. Bb7 {[%clk 0:01:11]}  Kd6 {[%clk 0:00:31]} 53. Ba8 {[%clk 0:01:11]}  Kc7 {[%clk 0:00:25]} 54. Kd2 {[%clk 0:01:10]}  Kd7 {[%clk 0:00:14]} 55. Kc3 {[%clk 0:01:07]}  Kd6 {[%clk 0:00:14]} 56. Bb7 {[%clk 0:01:06]}  Kc5 {[%clk 0:00:13]} 57. Ba8 {[%clk 0:01:06]}  Kd6 {[%clk 0:00:07]} 58. Bb7 {[%clk 0:01:05]}  Ne5 {[%clk 0:00:03]} 59. Bxe4 {[%clk 0:01:05]}  Ke6 {[%clk 0:00:04]} 60. Bxd3 {[%clk 0:01:05]}  Kf6 {[%clk 0:00:04]} 61. Kd4 {[%clk 0:01:01]}  Nxd3 {[%clk 0:00:02]} 62. Kxd3 {[%clk 0:01:02]}  Kg5 {[%clk 0:00:02]} 63. Ke4 {[%clk 0:01:02]}  Kxh5 {[%clk 0:00:03]} 64. Kf3 {[%clk 0:01:02]}  Kh4 {[%clk 0:00:03]} 65. Kg2 {[%clk 0:01:02]}  Kg4 {[%clk 0:00:04]} 66. Kh2 {[%clk 0:01:03]}  h5 {[%clk 0:00:05]} 67. Kg2 {[%clk 0:01:04]}  h4 {[%clk 0:00:05]} 68. Kh2 {[%clk 0:01:05]}  h3 {[%clk 0:00:06]} 69. Kh1 {[%clk 0:01:05]}  Kh4 {[%clk 0:00:07]} 70. Kh2 {[%clk 0:01:05]}  Kg4 {[%clk 0:00:07]} 71. Kh1 {[%clk 0:01:06]}  Kg3 {[%clk 0:00:08]} 72. Kg1 {[%clk 0:01:06]}  h2+ {[%clk 0:00:09]} 73. Kh1 {[%clk 0:01:07]}  Kh3 {[%clk 0:00:09]} 1/2-1/2


[Site "https://www.chess.com"]

[Event "Titled Tuesday Blitz November 01 Late 2022"]
[White "Lazavik, Denis"]
[Black "Gokerkan, Cem Kaan"]
[WhiteFideId "13515110"]
[BlackFideId "6336760"]
[WhiteElo "2437"]
[BlackElo "2365"]
[Result "1-0"]
[Round "06"]
[TimeControl "180+1"]
[Date "2022.11.01"]
[WhiteClock "0:01:22"]
[BlackClock "0:00:01"]

1. d4 {[%clk 0:03:00]}  Nf6 {[%clk 0:02:59]} 2. c4 {[%clk 0:03:01]}  e6 {[%clk 0:03:00]} 3. Nf3 {[%clk 0:03:01]}  b6 {[%clk 0:02:56]} 4. g3 {[%clk 0:03:01]}  Ba6 {[%clk 0:02:56]} 5. b3 {[%clk 0:03:02]}  Bb4+ {[%clk 0:02:55]} 6. Bd2 {[%clk 0:03:02]}  c5 {[%clk 0:02:56]} 7. Bxb4 {[%clk 0:02:57]}  cxb4 {[%clk 0:02:57]} 8. Bg2 {[%clk 0:02:58]}  Bb7 {[%clk 0:02:56]} 9. O-O {[%clk 0:02:58]}  O-O {[%clk 0:02:56]} 10. Nbd2 {[%clk 0:02:53]}  Qe7 {[%clk 0:02:45]} 11. Qc2 {[%clk 0:02:52]}  d5 {[%clk 0:02:44]} 12. Rfc1 {[%clk 0:02:45]}  Rc8 {[%clk 0:02:40]} 13. Qb2 {[%clk 0:02:45]}  a5 {[%clk 0:02:34]} 14. e3 {[%clk 0:02:43]}  Nbd7 {[%clk 0:02:18]} 15. Ne1 {[%clk 0:02:42]}  e5 {[%clk 0:02:08]} 16. Nd3 {[%clk 0:02:32]}  e4 {[%clk 0:01:12]} 17. Nf4 {[%clk 0:02:30]}  dxc4 {[%clk 0:01:11]} 18. bxc4 {[%clk 0:02:30]}  g5 {[%clk 0:01:10]} 19. Ne2 {[%clk 0:02:30]}  Rc7 {[%clk 0:00:58]} 20. a3 {[%clk 0:02:29]}  bxa3 {[%clk 0:00:58]} 21. Rxa3 {[%clk 0:02:28]}  Rac8 {[%clk 0:00:58]} 22. Nc3 {[%clk 0:02:23]}  h5 {[%clk 0:00:43]} 23. Nb5 {[%clk 0:02:22]}  Rc6 {[%clk 0:00:40]} 24. Na7 {[%clk 0:02:23]}  h4 {[%clk 0:00:37]} 25. Nxc8 {[%clk 0:02:19]}  Rxc8 {[%clk 0:00:37]} 26. c5 {[%clk 0:02:17]}  Rc6 {[%clk 0:00:11]} 27. cxb6 {[%clk 0:02:13]}  Rxb6 {[%clk 0:00:11]} 28. Rb3 {[%clk 0:02:13]}  Rxb3 {[%clk 0:00:08]} 29. Nxb3 {[%clk 0:02:13]}  Bd5 {[%clk 0:00:09]} 30. Nxa5 {[%clk 0:02:13]}  Qe6 {[%clk 0:00:07]} 31. Qc3 {[%clk 0:02:04]}  h3 {[%clk 0:00:07]} 32. Bf1 {[%clk 0:02:04]}  Qf5 {[%clk 0:00:07]} 33. Nc4 {[%clk 0:01:56]}  Ng4 {[%clk 0:00:06]} 34. Qe1 {[%clk 0:01:56]}  Bxc4 {[%clk 0:00:05]} 35. Rxc4 {[%clk 0:01:53]}  Ngf6 {[%clk 0:00:05]} 36. Rb4 {[%clk 0:01:46]}  g4 {[%clk 0:00:06]} 37. Rb5 {[%clk 0:01:46]}  Qe6 {[%clk 0:00:05]} 38. Qc3 {[%clk 0:01:43]}  Nh7 {[%clk 0:00:04]} 39. Qc8+ {[%clk 0:01:42]}  Kg7 {[%clk 0:00:04]} 40. Qd8 {[%clk 0:01:39]}  Ndf6 {[%clk 0:00:03]} 41. Re5 {[%clk 0:01:39]}  Qc6 {[%clk 0:00:01]} 42. Rc5 {[%clk 0:01:37]}  Qe6 {[%clk 0:00:01]} 43. Qc7 {[%clk 0:01:37]}  Kg6 {[%clk 0:00:01]} 44. Qf4 {[%clk 0:01:36]}  Qe7 {[%clk 0:00:01]} 45. Re5 {[%clk 0:01:34]}  Qd7 {[%clk 0:00:01]} 46. Ra5 {[%clk 0:01:29]}  Qc8 {[%clk 0:00:01]} 47. Ra6 {[%clk 0:01:27]}  Qd8 {[%clk 0:00:01]} 48. Qxg4+ {[%clk 0:01:22]}  Ng5 {[%clk 0:00:01]} 49. Bxh3 {[%clk 0:01:22]} 1-0


[Site "https://www.chess.com"]

[Event "Titled Tuesday Blitz November 01 Late 2022"]
[White "Leitao, Rafael"]
[Black "Ozdemir, Serhan Berat"]
[WhiteFideId "2101246"]
[BlackFideId "6374611"]
[WhiteElo "2609"]
[BlackElo "2016"]
[Result "1-0"]
[Round "06"]
[TimeControl "180+1"]
[Date "2022.11.02"]
[WhiteClock "0:00:09"]
[BlackClock "0:00:01"]

1. c4 {[%clk 0:02:49]}  Nf6 {[%clk 0:02:59]} 2. Nc3 {[%clk 0:02:49]}  g6 {[%clk 0:03:00]} 3. g3 {[%clk 0:02:48]}  Bg7 {[%clk 0:03:00]} 4. Bg2 {[%clk 0:02:48]}  O-O {[%clk 0:03:01]} 5. d4 {[%clk 0:02:48]}  d6 {[%clk 0:03:01]} 6. Nf3 {[%clk 0:02:48]}  c6 {[%clk 0:03:02]} 7. O-O {[%clk 0:02:48]}  Qa5 {[%clk 0:03:02]} 8. e4 {[%clk 0:02:47]}  e5 {[%clk 0:03:02]} 9. h3 {[%clk 0:02:45]}  Nbd7 {[%clk 0:03:02]} 10. d5 {[%clk 0:02:42]}  cxd5 {[%clk 0:03:02]} 11. cxd5 {[%clk 0:02:42]}  b5 {[%clk 0:02:53]} 12. Re1 {[%clk 0:02:05]}  b4 {[%clk 0:02:38]} 13. Na4 {[%clk 0:01:58]}  Ba6 {[%clk 0:02:28]} 14. a3 {[%clk 0:01:52]}  bxa3 {[%clk 0:02:16]} 15. Rxa3 {[%clk 0:01:46]}  Rfc8 {[%clk 0:02:03]} 16. Nc3 {[%clk 0:01:31]}  Qb6 {[%clk 0:01:46]} 17. Be3 {[%clk 0:01:29]}  Qb7 {[%clk 0:01:43]} 18. Qa4 {[%clk 0:01:22]}  Bc4 {[%clk 0:01:08]} 19. Nd2 {[%clk 0:01:10]}  Nb6 {[%clk 0:00:56]} 20. Qb4 {[%clk 0:00:58]}  Bd3 {[%clk 0:00:26]} 21. Rea1 {[%clk 0:00:57]}  Nfd7 {[%clk 0:00:20]} 22. Bf1 {[%clk 0:00:40]}  Bxf1 {[%clk 0:00:16]} 23. Kxf1 {[%clk 0:00:40]}  Nc5 {[%clk 0:00:14]} 24. Nb5 {[%clk 0:00:27]}  a5 {[%clk 0:00:15]} 25. Rxa5 {[%clk 0:00:26]}  Rxa5 {[%clk 0:00:15]} 26. Rxa5 {[%clk 0:00:27]}  Nbd7 {[%clk 0:00:11]} 27. Qa3 {[%clk 0:00:22]}  Bf8 {[%clk 0:00:05]} 28. f3 {[%clk 0:00:21]}  f5 {[%clk 0:00:04]} 29. Nc4 {[%clk 0:00:21]}  fxe4 {[%clk 0:00:04]} 30. Nbxd6 {[%clk 0:00:19]}  Bxd6 {[%clk 0:00:03]} 31. Nxd6 {[%clk 0:00:19]}  Qb6 {[%clk 0:00:01]} 32. Nxc8 {[%clk 0:00:18]}  Qf6 {[%clk 0:00:02]} 33. Bxc5 {[%clk 0:00:17]}  exf3 {[%clk 0:00:01]} 34. Bf2 {[%clk 0:00:15]}  Qf5 {[%clk 0:00:01]} 35. Ne7+ {[%clk 0:00:09]} 1-0


[Site "https://www.chess.com"]

[Event "Titled Tuesday Blitz November 01 Late 2022"]
[White "Luxama, Jacques Muller"]
[Black "Prydun, Andriy"]
[WhiteFideId "11900113"]
[BlackFideId "14145898"]
[WhiteElo "1931"]
[BlackElo "2163"]
[Result "1-0"]
[Round "06"]
[TimeControl "180+1"]
[Date "2022.11.02"]
[WhiteClock "0:01:26"]
[BlackClock "0:00:39"]

1. d4 {[%clk 0:03:00]}  Nf6 {[%clk 0:02:40]} 2. c4 {[%clk 0:02:59]}  c5 {[%clk 0:02:41]} 3. dxc5 {[%clk 0:02:55]}  e6 {[%clk 0:02:38]} 4. e3 {[%clk 0:02:55]}  Bxc5 {[%clk 0:02:37]} 5. Nf3 {[%clk 0:02:56]}  O-O {[%clk 0:02:35]} 6. Be2 {[%clk 0:02:57]}  d5 {[%clk 0:02:35]} 7. O-O {[%clk 0:02:56]}  Nc6 {[%clk 0:02:35]} 8. cxd5 {[%clk 0:02:54]}  exd5 {[%clk 0:02:31]} 9. b3 {[%clk 0:02:52]}  d4 {[%clk 0:02:25]} 10. exd4 {[%clk 0:02:45]}  Nxd4 {[%clk 0:02:25]} 11. Bb2 {[%clk 0:02:43]}  Nxe2+ {[%clk 0:02:20]} 12. Qxe2 {[%clk 0:02:44]}  Bg4 {[%clk 0:02:15]} 13. Nbd2 {[%clk 0:02:44]}  Qb6 {[%clk 0:01:47]} 14. h3 {[%clk 0:02:41]}  Bh5 {[%clk 0:01:46]} 15. Qc4 {[%clk 0:02:37]}  Rac8 {[%clk 0:01:41]} 16. Qa4 {[%clk 0:02:33]}  Rfe8 {[%clk 0:01:27]} 17. Qh4 {[%clk 0:02:25]}  Bg6 {[%clk 0:01:11]} 18. Nc4 {[%clk 0:02:18]}  Qa6 {[%clk 0:01:09]} 19. Nfe5 {[%clk 0:02:17]}  b5 {[%clk 0:00:56]} 20. Nd2 {[%clk 0:02:09]}  Rcd8 {[%clk 0:00:50]} 21. Ndf3 {[%clk 0:02:07]}  Qb6 {[%clk 0:00:49]} 22. a3 {[%clk 0:02:00]}  Be4 {[%clk 0:00:46]} 23. b4 {[%clk 0:01:58]}  Be7 {[%clk 0:00:45]} 24. Rfe1 {[%clk 0:01:54]}  Nd5 {[%clk 0:00:45]} 25. Qxe4 {[%clk 0:01:51]}  Bf6 {[%clk 0:00:43]} 26. Rad1 {[%clk 0:01:48]}  Ne7 {[%clk 0:00:39]} 27. Rxd8 {[%clk 0:01:45]}  Rxd8 {[%clk 0:00:40]} 28. Nxf7 {[%clk 0:01:37]}  Kxf7 {[%clk 0:00:39]} 29. Bxf6 {[%clk 0:01:31]}  Qxf6 {[%clk 0:00:40]} 30. Ne5+ {[%clk 0:01:27]}  Kg8 {[%clk 0:00:39]} 31. Ng4 {[%clk 0:01:26]} 1-0


[Site "https://www.chess.com"]

[Event "Titled Tuesday Blitz November 01 Late 2022"]
[White "Mahdavi, Reza"]
[Black "Gubajdullin, Alexei"]
[WhiteFideId "12595926"]
[BlackFideId "4141202"]
[WhiteElo "2240"]
[BlackElo "2200"]
[Result "1-0"]
[Round "06"]
[TimeControl "180+1"]
[Date "2022.11.02"]
[WhiteClock "0:00:45"]
[BlackClock "0:00:03"]

1. e4 {[%clk 0:03:00]}  g6 {[%clk 0:02:59]} 2. d4 {[%clk 0:03:01]}  Bg7 {[%clk 0:02:59]} 3. Nc3 {[%clk 0:03:01]}  d6 {[%clk 0:02:59]} 4. f4 {[%clk 0:03:02]}  c6 {[%clk 0:02:57]} 5. Nf3 {[%clk 0:03:03]}  Qb6 {[%clk 0:02:57]} 6. Rb1 {[%clk 0:02:52]}  Bg4 {[%clk 0:02:56]} 7. Be3 {[%clk 0:02:50]}  Bxf3 {[%clk 0:02:55]} 8. gxf3 {[%clk 0:02:51]}  e6 {[%clk 0:02:54]} 9. Qd2 {[%clk 0:02:50]}  d5 {[%clk 0:02:54]} 10. f5 {[%clk 0:02:45]}  exf5 {[%clk 0:02:39]} 11. exd5 {[%clk 0:02:35]}  Nf6 {[%clk 0:02:29]} 12. dxc6 {[%clk 0:02:34]}  bxc6 {[%clk 0:02:29]} 13. Bc4 {[%clk 0:02:23]}  O-O {[%clk 0:02:28]} 14. O-O {[%clk 0:02:23]}  Qd8 {[%clk 0:02:11]} 15. d5 {[%clk 0:02:21]}  cxd5 {[%clk 0:02:03]} 16. Nxd5 {[%clk 0:02:22]}  Nc6 {[%clk 0:01:58]} 17. Rbd1 {[%clk 0:02:17]}  Ne5 {[%clk 0:01:49]} 18. Bb3 {[%clk 0:02:16]}  Nh5 {[%clk 0:01:40]} 19. Bg5 {[%clk 0:02:12]}  Qb8 {[%clk 0:01:34]} 20. Ne7+ {[%clk 0:01:53]}  Kh8 {[%clk 0:01:33]} 21. Bd5 {[%clk 0:01:54]}  Qb6+ {[%clk 0:00:54]} 22. Be3 {[%clk 0:01:53]}  Qf6 {[%clk 0:00:32]} 23. Bxa8 {[%clk 0:01:46]}  Qxe7 {[%clk 0:00:32]} 24. Bd5 {[%clk 0:01:42]}  Rd8 {[%clk 0:00:31]} 25. Qf2 {[%clk 0:01:36]}  f4 {[%clk 0:00:27]} 26. Bxa7 {[%clk 0:01:21]}  Ng3 {[%clk 0:00:17]} 27. Rfe1 {[%clk 0:01:10]}  Nf5 {[%clk 0:00:14]} 28. Bc5 {[%clk 0:01:08]}  Qg5+ {[%clk 0:00:14]} 29. Qg2 {[%clk 0:01:08]}  Qh5 {[%clk 0:00:13]} 30. Be4 {[%clk 0:01:05]}  Rxd1 {[%clk 0:00:10]} 31. Rxd1 {[%clk 0:01:06]}  Bf6 {[%clk 0:00:08]} 32. Bf2 {[%clk 0:01:01]}  Nh4 {[%clk 0:00:07]} 33. Bxh4 {[%clk 0:00:59]}  Qxh4 {[%clk 0:00:07]} 34. a4 {[%clk 0:00:57]}  Nc4 {[%clk 0:00:07]} 35. Qg4 {[%clk 0:00:51]}  Qh6 {[%clk 0:00:06]} 36. Qc8+ {[%clk 0:00:50]}  Kg7 {[%clk 0:00:06]} 37. Qxc4 {[%clk 0:00:51]}  Qg5+ {[%clk 0:00:06]} 38. Kh1 {[%clk 0:00:51]}  Bxb2 {[%clk 0:00:04]} 39. c3 {[%clk 0:00:48]}  Qh4 {[%clk 0:00:03]} 40. Qd4+ {[%clk 0:00:48]}  Kh6 {[%clk 0:00:03]} 41. a5 {[%clk 0:00:49]}  Qh3 {[%clk 0:00:02]} 42. a6 {[%clk 0:00:48]}  Qc8 {[%clk 0:00:02]} 43. a7 {[%clk 0:00:48]}  Bxc3 {[%clk 0:00:02]} 44. a8=Q {[%clk 0:00:48]}  Qc7 {[%clk 0:00:02]} 45. Qf8+ {[%clk 0:00:47]}  Kh5 {[%clk 0:00:03]} 46. Qdc5+ {[%clk 0:00:45]} 1-0


[Site "https://www.chess.com"]

[Event "Titled Tuesday Blitz November 01 Late 2022"]
[White "Martinez Alcantara, Jose Eduardo"]
[Black "Ivic, Velimir"]
[WhiteFideId "3805662"]
[BlackFideId "950122"]
[WhiteElo "2703"]
[BlackElo "2625"]
[Result "1-0"]
[Round "06"]
[TimeControl "180+1"]
[Date "2022.11.01"]
[WhiteClock "0:00:20"]
[BlackClock "0:00:05"]

1. e4 {[%clk 0:03:00]}  c5 {[%clk 0:03:00]} 2. Nf3 {[%clk 0:03:01]}  Nc6 {[%clk 0:03:00]} 3. c3 {[%clk 0:03:01]}  Nf6 {[%clk 0:03:00]} 4. Bd3 {[%clk 0:03:02]}  d5 {[%clk 0:02:58]} 5. e5 {[%clk 0:03:02]}  Nd7 {[%clk 0:02:58]} 6. Bb5 {[%clk 0:03:03]}  e6 {[%clk 0:02:48]} 7. d4 {[%clk 0:03:01]}  a6 {[%clk 0:02:47]} 8. Ba4 {[%clk 0:03:01]}  Be7 {[%clk 0:02:48]} 9. O-O {[%clk 0:03:01]}  b5 {[%clk 0:02:48]} 10. Bc2 {[%clk 0:03:00]}  Bb7 {[%clk 0:02:48]} 11. Re1 {[%clk 0:03:01]}  Rc8 {[%clk 0:02:48]} 12. a3 {[%clk 0:03:01]}  Qb6 {[%clk 0:02:47]} 13. Be3 {[%clk 0:03:00]}  a5 {[%clk 0:02:46]} 14. Nbd2 {[%clk 0:02:59]}  b4 {[%clk 0:02:46]} 15. axb4 {[%clk 0:02:58]}  axb4 {[%clk 0:02:45]} 16. Nf1 {[%clk 0:02:56]}  Na5 {[%clk 0:02:39]} 17. Ng3 {[%clk 0:02:53]}  Nc4 {[%clk 0:02:38]} 18. Bc1 {[%clk 0:02:53]}  g6 {[%clk 0:02:34]} 19. b3 {[%clk 0:02:41]}  Na5 {[%clk 0:02:34]} 20. cxb4 {[%clk 0:02:42]}  cxb4 {[%clk 0:02:30]} 21. Bd2 {[%clk 0:02:39]}  Ba6 {[%clk 0:02:28]} 22. h4 {[%clk 0:02:36]}  h6 {[%clk 0:02:27]} 23. Qb1 {[%clk 0:02:32]}  Bb5 {[%clk 0:02:18]} 24. Ne2 {[%clk 0:02:21]}  Nb8 {[%clk 0:02:08]} 25. Bd3 {[%clk 0:02:20]}  Nbc6 {[%clk 0:02:06]} 26. Be3 {[%clk 0:02:06]}  Kd7 {[%clk 0:02:05]} 27. Rd1 {[%clk 0:01:56]}  Na7 {[%clk 0:01:55]} 28. Qa2 {[%clk 0:01:42]}  N5c6 {[%clk 0:01:55]} 29. Nc1 {[%clk 0:01:40]}  g5 {[%clk 0:01:46]} 30. hxg5 {[%clk 0:01:38]}  hxg5 {[%clk 0:01:47]} 31. g4 {[%clk 0:01:38]}  Rh3 {[%clk 0:01:34]} 32. Kg2 {[%clk 0:01:36]}  Rch8 {[%clk 0:01:34]} 33. Qe2 {[%clk 0:01:32]}  f6 {[%clk 0:01:23]} 34. Rd2 {[%clk 0:01:18]}  f5 {[%clk 0:01:07]} 35. gxf5 {[%clk 0:01:17]}  g4 {[%clk 0:01:07]} 36. fxe6+ {[%clk 0:01:17]}  Kc8 {[%clk 0:01:04]} 37. Ng1 {[%clk 0:01:14]}  Rh2+ {[%clk 0:00:51]} 38. Kf1 {[%clk 0:01:14]}  g3 {[%clk 0:00:44]} 39. Rc2 {[%clk 0:01:12]}  g2+ {[%clk 0:00:40]} 40. Ke1 {[%clk 0:01:12]}  Rh1 {[%clk 0:00:39]} 41. f3 {[%clk 0:01:13]}  Rg8 {[%clk 0:00:23]} 42. Rxa7 {[%clk 0:01:10]}  Kb8 {[%clk 0:00:15]} 43. Rxe7 {[%clk 0:00:31]}  Nxd4 {[%clk 0:00:15]} 44. Qf2 {[%clk 0:00:29]}  Nxf3+ {[%clk 0:00:07]} 45. Kd1 {[%clk 0:00:24]}  Qxe3 {[%clk 0:00:05]} 46. Qxe3 {[%clk 0:00:23]}  Rxg1+ {[%clk 0:00:04]} 47. Qxg1 {[%clk 0:00:22]}  Nxg1 {[%clk 0:00:05]} 48. Bxb5 {[%clk 0:00:20]}  Ne2 {[%clk 0:00:05]} 49. Nxe2 {[%clk 0:00:20]} 1-0


[Site "https://www.chess.com"]

[Event "Titled Tuesday Blitz November 01 Late 2022"]
[White "Muradli, Mahammad"]
[Black "Shipov, Sergei"]
[WhiteFideId "13409301"]
[BlackFideId "4113624"]
[WhiteElo "2611"]
[BlackElo "2778"]
[Result "1-0"]
[Round "06"]
[TimeControl "180+1"]
[Date "2022.11.01"]
[WhiteClock "0:01:35"]
[BlackClock "0:01:57"]

1. Nf3 {[%clk 0:03:00]}  d5 {[%clk 0:02:59]} 2. g3 {[%clk 0:03:01]}  c6 {[%clk 0:03:00]} 3. Bg2 {[%clk 0:03:01]}  Bg4 {[%clk 0:03:00]} 4. O-O {[%clk 0:03:01]}  Nd7 {[%clk 0:03:01]} 5. d3 {[%clk 0:03:01]}  e5 {[%clk 0:02:57]} 6. c4 {[%clk 0:02:58]}  dxc4 {[%clk 0:02:56]} 7. dxc4 {[%clk 0:02:59]}  h6 {[%clk 0:02:56]} 8. Nc3 {[%clk 0:02:58]}  Ngf6 {[%clk 0:02:55]} 9. Qc2 {[%clk 0:02:57]}  Be7 {[%clk 0:02:51]} 10. Rd1 {[%clk 0:02:57]}  Qc7 {[%clk 0:02:51]} 11. b3 {[%clk 0:02:56]}  O-O {[%clk 0:02:51]} 12. Bb2 {[%clk 0:02:57]}  a5 {[%clk 0:02:48]} 13. Nh4 {[%clk 0:02:56]}  Rfe8 {[%clk 0:02:46]} 14. Nf5 {[%clk 0:02:53]}  Bf8 {[%clk 0:02:46]} 15. Bf3 {[%clk 0:02:43]}  Bh3 {[%clk 0:02:41]} 16. Ne4 {[%clk 0:02:15]}  Nxe4 {[%clk 0:02:38]} 17. Bxe4 {[%clk 0:02:16]}  a4 {[%clk 0:02:30]} 18. Rd2 {[%clk 0:01:51]}  Nc5 {[%clk 0:02:27]} 19. Bg2 {[%clk 0:01:36]}  axb3 {[%clk 0:02:26]} 20. axb3 {[%clk 0:01:36]}  Rxa1+ {[%clk 0:02:25]} 21. Bxa1 {[%clk 0:01:37]}  Bxf5 {[%clk 0:02:25]} 22. Qxf5 {[%clk 0:01:37]}  Nxb3 {[%clk 0:02:25]} 23. Rd7 {[%clk 0:01:35]}  Qc8 {[%clk 0:01:57]} 24. Be4 {[%clk 0:01:35]} 1-0


[Site "https://www.chess.com"]

[Event "Titled Tuesday Blitz November 01 Late 2022"]
[White "O`Gorman, Tom"]
[Black "Heinemann, Josefine"]
[WhiteFideId "2508249"]
[BlackFideId "12900460"]
[WhiteElo "2271"]
[BlackElo "2300"]
[Result "0-1"]
[Round "06"]
[TimeControl "180+1"]
[Date "2022.11.02"]
[WhiteClock "0:00:58"]
[BlackClock "0:01:01"]

1. e4 {[%clk 0:03:00]}  c6 {[%clk 0:02:59]} 2. Nf3 {[%clk 0:02:58]}  d5 {[%clk 0:02:58]} 3. d3 {[%clk 0:02:58]}  dxe4 {[%clk 0:02:58]} 4. dxe4 {[%clk 0:02:59]}  Qxd1+ {[%clk 0:02:58]} 5. Kxd1 {[%clk 0:03:00]}  Nd7 {[%clk 0:02:59]} 6. Nfd2 {[%clk 0:02:56]}  f5 {[%clk 0:02:58]} 7. exf5 {[%clk 0:02:54]}  Nh6 {[%clk 0:02:55]} 8. c3 {[%clk 0:02:48]}  Nc5 {[%clk 0:02:54]} 9. b4 {[%clk 0:02:42]}  Na4 {[%clk 0:02:52]} 10. Bd3 {[%clk 0:02:40]}  Bxf5 {[%clk 0:02:52]} 11. Bxf5 {[%clk 0:02:39]}  Nxf5 {[%clk 0:02:53]} 12. Kc2 {[%clk 0:02:39]}  O-O-O {[%clk 0:02:52]} 13. Nc4 {[%clk 0:02:38]}  Nb6 {[%clk 0:02:49]} 14. Nbd2 {[%clk 0:02:36]}  e6 {[%clk 0:02:43]} 15. Re1 {[%clk 0:02:34]}  Be7 {[%clk 0:02:37]} 16. Rxe6 {[%clk 0:02:14]}  Bf6 {[%clk 0:02:34]} 17. Nxb6+ {[%clk 0:02:12]}  axb6 {[%clk 0:02:31]} 18. Nc4 {[%clk 0:02:12]}  Kc7 {[%clk 0:02:28]} 19. Bf4+ {[%clk 0:02:11]}  Kd7 {[%clk 0:02:25]} 20. Rae1 {[%clk 0:02:10]}  Rde8 {[%clk 0:02:05]} 21. Nxb6+ {[%clk 0:02:08]}  Kd8 {[%clk 0:02:04]} 22. Rd1+ {[%clk 0:02:00]}  Nd4+ {[%clk 0:01:53]} 23. Rxd4+ {[%clk 0:01:54]}  Bxd4 {[%clk 0:01:52]} 24. Rxe8+ {[%clk 0:01:37]}  Rxe8 {[%clk 0:01:53]} 25. cxd4 {[%clk 0:01:37]}  Re2+ {[%clk 0:01:52]} 26. Kb3 {[%clk 0:01:36]}  Rxf2 {[%clk 0:01:52]} 27. Nc4 {[%clk 0:01:32]}  Rxf4 {[%clk 0:01:51]} 28. Nd6 {[%clk 0:01:31]}  Kc7 {[%clk 0:01:47]} 29. Ne8+ {[%clk 0:01:30]}  Kb6 {[%clk 0:01:42]} 30. Nxg7 {[%clk 0:01:31]}  Rg4 {[%clk 0:01:41]} 31. Nf5 {[%clk 0:01:27]}  Rxg2 {[%clk 0:01:41]} 32. h4 {[%clk 0:01:27]}  Rf2 {[%clk 0:01:36]} 33. Ne3 {[%clk 0:01:21]}  Rf4 {[%clk 0:01:34]} 34. d5 {[%clk 0:01:20]}  Rxh4 {[%clk 0:01:32]} 35. d6 {[%clk 0:01:20]}  Rd4 {[%clk 0:01:27]} 36. Nc4+ {[%clk 0:01:20]}  Ka7 {[%clk 0:01:27]} 37. Kc3 {[%clk 0:01:19]}  Rd5 {[%clk 0:01:26]} 38. a4 {[%clk 0:01:15]}  h5 {[%clk 0:01:23]} 39. a5 {[%clk 0:01:15]}  h4 {[%clk 0:01:23]} 40. Nb6 {[%clk 0:01:16]}  Rd1 {[%clk 0:01:20]} 41. Kc2 {[%clk 0:01:15]}  h3 {[%clk 0:01:14]} 42. Kxd1 {[%clk 0:01:14]}  h2 {[%clk 0:01:14]} 43. d7 {[%clk 0:01:08]}  h1=Q+ {[%clk 0:01:13]} 44. Kc2 {[%clk 0:01:08]}  Qe4+ {[%clk 0:01:06]} 45. Kb3 {[%clk 0:01:05]}  Qd3+ {[%clk 0:01:06]} 46. Ka4 {[%clk 0:01:05]}  Kb8 {[%clk 0:01:02]} 47. a6 {[%clk 0:01:01]}  bxa6 {[%clk 0:01:02]} 48. Ka5 {[%clk 0:00:58]}  Qb5# {[%clk 0:01:01]} 0-1


[Site "https://www.chess.com"]